bitfinex/quotes_BTCUSD_20250716
["timestamp","ask_amount","ask_price","bid_price","bid_amount"]
[1752665387260,0.00405053,118930.0,118920.0,3.57877757]
[1752665387488,0.00405053,118930.0,118920.0,3.54499402]
[1752665388642,0.00405053,118930.0,118920.0,2.42704702]
[1752665388853,0.00405053,118930.0,118920.0,2.41074702]
[1752665389784,0.02207053,118930.0,118920.0,1.59606002]
[1752665389995,0.04144053,118930.0,118920.0,1.87458002]
[1752665391576,0.03847053,118930.0,118920.0,1.87458002]
[1752665391702,0.01995053,118930.0,118920.0,1.87769002]
[1752665392463,0.01995053,118930.0,118920.0,1.90255568]
[1752665392675,0.00405053,118930.0,118920.0,1.90255568]
[1752665393260,0.00405053,118930.0,118920.0,1.91106972]
[1752665393467,0.01925053,118930.0,118920.0,1.91106972]
[1752665394962,0.03535053,118930.0,118920.0,1.91106972]
[1752665395893,0.03535053,118930.0,118920.0,1.24949298]
[1752665396094,0.03535053,118930.0,118920.0,1.90795972]
[1752665396725,0.03535053,118930.0,118920.0,1.77943972]
[1752665396905,0.03535053,118930.0,118920.0,1.90787972]
[1752665397114,0.03535053,118930.0,118920.0,1.24630298]
[1752665397447,0.04054053,118930.0,118920.0,1.90787972]
[1752665398543,0.03535053,118930.0,118920.0,1.91090972]
[1752665398799,0.03749053,118930.0,118920.0,1.77943972]
[1752665399001,0.03749053,118930.0,118920.0,1.90787972]
[1752665399309,0.03535053,118930.0,118920.0,1.90787972]
[1752665400425,0.03535053,118930.0,118920.0,1.91090972]
[1752665401218,0.03535053,118930.0,118920.0,1.61350972]
[1752665401395,0.03535053,118930.0,118920.0,3.57211572]
[1752665401600,0.03535053,118930.0,118920.0,2.91765172]
[1752665401806,0.03535053,118930.0,118920.0,2.60455772]
[1752665402016,0.01925053,118930.0,118920.0,2.60758772]
[1752665402679,0.01925053,118930.0,118920.0,2.47914772]
[1752665402857,0.01925053,118930.0,118920.0,1.94601098]
[1752665403066,0.01925053,118930.0,118920.0,2.60758772]
[1752665403265,0.01925053,118930.0,118920.0,2.28618272]
[1752665403466,0.01925053,118930.0,118920.0,2.00844072]
[1752665403680,0.03699053,118930.0,118920.0,0.61870298]
[1752665403903,0.04004053,118930.0,118920.0,0.79112998]
[1752665404116,0.04004053,118930.0,118920.0,0.79697298]
[1752665404275,0.04004053,118930.0,118920.0,1.12776135]
[1752665404474,0.04004053,118930.0,118920.0,1.45854972]
[1752665405157,0.04004053,118930.0,118920.0,1.23818551]
[1752665406809,0.04004053,118930.0,118920.0,0.79697298]
[1752665407015,0.04004053,118930.0,118920.0,1.23818551]
[1752665410253,0.04004053,118930.0,118920.0,1.10970551]
[1752665410436,0.04004053,118930.0,118920.0,0.79705298]
[1752665410649,0.04004053,118930.0,118920.0,1.23826551]
[1752665410859,0.04004053,118930.0,118920.0,1.23242251]
[1752665411088,0.04004053,118930.0,118920.0,1.23826551]
[1752665412281,0.04004053,118930.0,118920.0,0.79705298]
[1752665412508,0.04004053,118930.0,118920.0,1.23826551]
[1752665413764,0.04004053,118930.0,118920.0,1.10970551]
[1752665413962,0.04004053,118930.0,118920.0,1.23826551]
[1752665416512,0.04004053,118930.0,118920.0,1.67947804]
[1752665417161,0.04004053,118930.0,118920.0,1.67955804]
[1752665417783,0.04004053,118930.0,118920.0,0.79713298]
[1752665417994,0.04004053,118930.0,118920.0,1.23834551]
[1752665420127,0.04004053,118930.0,118920.0,0.79713298]
[1752665420344,0.04004053,118930.0,118920.0,1.23834551]
[1752665423089,0.04004053,118930.0,118920.0,0.79713298]
[1752665423315,0.04004053,118930.0,118920.0,1.23834551]
[1752665423943,0.04004053,118930.0,118920.0,1.24045551]
[1752665424372,0.04004053,118930.0,118920.0,1.10970551]
[1752665424580,0.04004053,118930.0,118920.0,1.23838551]
[1752665424879,0.04004053,118930.0,118920.0,1.10970551]
[1752665425081,0.04004053,118930.0,118920.0,1.23842551]
[1752665427093,0.04004053,118930.0,118920.0,1.45895118]
[1752665428525,0.04004053,118930.0,118920.0,1.46106118]
[1752665428705,0.04004053,118930.0,118920.0,1.33234118]
[1752665428882,0.04004053,118930.0,118920.0,1.46098118]
[1752665430177,0.04004053,118930.0,118920.0,1.33234118]
[1752665430412,0.04004053,118930.0,118920.0,1.32438818]
[1752665430629,0.04004053,118930.0,118920.0,0.21811704]
[1752665430841,0.04004053,118930.0,118920.0,0.34671704]
[1752665431052,0.04004053,118930.0,118920.0,0.67758614]
[1752665431298,0.04004053,118930.0,118920.0,0.20376]
[1752665431505,0.37090963,118930.0,118920.0,0.3324]
[1752665431736,0.36990963,118930.0,118920.0,0.3304]
[1752665432219,0.37090963,118930.0,118920.0,0.20476]
[1752665432427,0.36990963,118930.0,118920.0,0.3304]
[1752665432851,0.37090963,118930.0,118920.0,0.3314]
[1752665434323,0.04004053,118930.0,118920.0,0.3314]
[1752665436115,0.04004053,118930.0,118920.0,0.33148]
[1752665436741,0.04004053,118930.0,118920.0,0.12972]
[1752665444149,0.04004053,118930.0,118920.0,0.1296]
[1752665444754,0.04004053,118930.0,118920.0,0.57680623]
[1752665444975,0.04004053,118930.0,118920.0,0.57891623]
[1752665445180,0.03699053,118930.0,118920.0,0.57891623]
[1752665446495,0.03997053,118930.0,118920.0,0.57891623]
[1752665447444,0.03699053,118930.0,118920.0,0.57891623]
[1752665452088,0.00405053,118930.0,118920.0,0.58203623]
[1752665456151,0.02015053,118930.0,118920.0,0.58203623]
[1752665457226,0.00405053,118930.0,118920.0,0.66754651]
[1752665458974,0.00405053,118930.0,118920.0,0.8879823]
[1752665461303,0.00405053,118930.0,118920.0,1.2434823]
[1752665461744,0.00405053,118930.0,118920.0,1.2584823]
[1752665463078,0.00405053,118930.0,118920.0,1.2434823]
[1752665464986,0.00405053,118930.0,118920.0,0.56618328]
[1752665465205,0.00405053,118930.0,118920.0,1.2279823]
[1752665466709,0.00405053,118930.0,118920.0,1.2602823]
[1752665467612,0.00405053,118930.0,118920.0,1.2437823]
[1752665469877,0.00405053,118930.0,118920.0,1.2279823]
[1752665470457,0.00405053,118930.0,118920.0,0.56618328]
[1752665470827,0.00405053,118930.0,118920.0,1.2279823]
[1752665480176,0.00182178,118930.0,118920.0,1.2279823]
[1752665481691,0.03569178,118930.0,118920.0,1.2248623]
[1752665481919,0.03869178,118930.0,118920.0,1.0941523]
[1752665482148,0.03869178,118930.0,118920.0,1.2224323]
[1752665482903,0.03869178,118930.0,118920.0,1.2245323]
[1752665484003,0.00182178,118930.0,118920.0,1.2245323]
[1752665484216,0.00182178,118930.0,118920.0,1.2277223]
[1752665484886,0.00182178,118930.0,118920.0,1.0994423]
[1752665485094,0.00182178,118930.0,118920.0,1.2278423]
[1752665486176,0.00182178,118930.0,118920.0,1.2433423]
[1752665487908,0.00182178,118930.0,118920.0,1.0994423]
[1752665488106,0.00182178,118930.0,118920.0,1.2278023]
[1752665488316,0.01682178,118930.0,118920.0,1.2278023]
[1752665489465,0.00182178,118930.0,118920.0,1.2278023]
[1752665490737,0.00182178,118930.0,118920.0,1.2437023]
[1752665491667,0.00105053,118930.0,118920.0,1.2437023]
[1752665491892,0.0154,118940.0,118930.0,0.34]
[1752665492132,0.0154,118940.0,118930.0,0.88678979]
[1752665492492,0.0154,118940.0,118930.0,0.89263279]
[1752665492697,0.02199,118950.0,118930.0,0.89582279]
[1752665492901,0.02204053,118950.0,118940.0,0.46502251]
[1752665493105,0.02401053,118950.0,118940.0,0.46502251]
[1752665493330,0.02401053,118950.0,118940.0,0.134123]
[1752665494177,0.02701053,118950.0,118940.0,0.135123]
[1752665494801,0.04341053,118950.0,118940.0,0.185123]
[1752665495402,0.04341053,118950.0,118940.0,0.51602251]
[1752665495606,0.04341053,118950.0,118940.0,0.51812251]
[1752665496010,0.04341053,118950.0,118940.0,0.60363279]
[1752665496216,0.04341053,118950.0,118940.0,0.27273328]
[1752665496425,0.04341053,118950.0,118940.0,0.60363279]
[1752665496976,0.04341053,118950.0,118940.0,0.27273328]
[1752665499070,0.04042053,118950.0,118940.0,0.27273328]
[1752665499445,0.02205053,118950.0,118940.0,0.60682279]
[1752665499716,0.00645053,118950.0,118940.0,0.60682279]
[1752665500144,0.00645053,118950.0,118940.0,0.94682279]
[1752665500579,0.02245053,118950.0,118940.0,0.94682279]
[1752665501655,0.04092053,118950.0,118940.0,0.94363279]
[1752665502083,0.02442053,118950.0,118940.0,0.94363279]
[1752665502309,0.02245053,118950.0,118940.0,0.94363279]
[1752665502517,0.02245053,118950.0,118940.0,0.27273328]
[1752665502912,0.02245053,118950.0,118940.0,0.27592328]
[1752665503356,0.00645053,118950.0,118940.0,0.58842328]
[1752665503772,0.00645053,118950.0,118940.0,0.57332328]
[1752665504678,0.02235053,118950.0,118940.0,0.57332328]
[1752665505129,0.04261053,118950.0,118940.0,0.46849328]
[1752665505344,0.04261053,118950.0,118940.0,0.47059328]
[1752665505570,0.02731053,118950.0,118940.0,0.47059328]
[1752665505781,0.02235053,118950.0,118940.0,0.47059328]
[1752665506001,0.00645053,118950.0,118940.0,0.47059328]
[1752665506443,0.02285053,118950.0,118940.0,0.80149279]
[1752665506651,0.01651593,118950.0,118940.0,0.80149279]
[1752665507287,0.00011593,118950.0,118940.0,0.80149279]
[1752665507733,0.00011593,118950.0,118940.0,0.47059328]
[1752665508122,0.01531593,118950.0,118940.0,0.80149279]
[1752665508940,0.02027593,118950.0,118940.0,0.80149279]
[1752665509335,0.01531593,118950.0,118940.0,0.80149279]
[1752665510171,0.00011593,118950.0,118940.0,0.80149279]
[1752665510371,0.00011593,118950.0,118940.0,0.47059328]
[1752665510654,0.00011593,118950.0,118940.0,0.80149279]
[1752665511010,0.01651593,118950.0,118940.0,0.80149279]
[1752665511225,0.01651593,118950.0,118940.0,0.47059328]
[1752665511558,0.36870544,118950.0,118940.0,0.46849328]
[1752665512064,0.03780593,118950.0,118940.0,0.46849328]
[1752665512317,0.36870544,118950.0,118940.0,0.46849328]
[1752665512776,0.36870544,118950.0,118940.0,0.17109328]
[1752665513428,0.03780593,118950.0,118940.0,0.17097328]
[1752665513667,0.03780593,118950.0,118940.0,0.04273328]
[1752665513908,0.03780593,118950.0,118940.0,0.17093328]
[1752665514132,0.02150593,118950.0,118940.0,0.04480328]
[1752665514353,0.00011593,118950.0,118940.0,0.17300328]
[1752665514795,0.01571593,118950.0,118940.0,0.50390279]
[1752665515046,0.01571593,118950.0,118940.0,0.37570279]
[1752665515263,0.02089593,118950.0,118940.0,0.50414279]
[1752665516721,0.00011593,118950.0,118940.0,0.17324328]
[1752665516864,0.00011593,118950.0,118940.0,0.50414279]
[1752665517488,0.01561593,118950.0,118940.0,0.50414279]
[1752665519643,0.00011593,118950.0,118940.0,0.50414279]
[1752665520337,0.00529593,118950.0,118940.0,0.50414279]
[1752665520567,0.02129593,118950.0,118940.0,0.50414279]
[1752665521020,0.01611593,118950.0,118940.0,0.50414279]
[1752665522063,0.01611593,118950.0,118940.0,0.55414279]
[1752665522705,0.00011593,118950.0,118940.0,0.55414279]
[1752665523709,0.00011593,118950.0,118940.0,0.57918744]
[1752665526480,0.00011593,118950.0,118940.0,0.92668695]
[1752665527014,0.00011593,118950.0,118940.0,0.91008695]
[1752665528283,0.01511593,118950.0,118940.0,0.91008695]
[1752665528461,0.00011593,118950.0,118940.0,0.57918744]
[1752665529358,0.02069593,118950.0,118940.0,0.57918744]
[1752665530259,0.02069593,118950.0,118940.0,0.45074744]
[1752665530471,0.02069593,118950.0,118940.0,0.57898744]
[1752665533046,0.01751593,118950.0,118940.0,0.90988695]
[1752665535126,0.01751593,118950.0,118940.0,0.90988695]
[1752665535854,0.01551593,118950.0,118940.0,0.90988695]
[1752665538013,0.01551593,118950.0,118940.0,0.24808793]
[1752665538213,0.01551593,118950.0,118940.0,0.90988695]
[1752665540576,0.01551593,118950.0,118940.0,0.8848423]
[1752665540992,0.02069593,118950.0,118940.0,0.8848423]
[1752665541684,0.03639593,118950.0,118940.0,0.09273328]
[1752665541935,0.36729544,118950.0,118940.0,0.1782]
[1752665545307,0.03639593,118950.0,118940.0,0.1782]
[1752665546426,0.36729544,118950.0,118940.0,0.1782]
[1752665548405,0.03639593,118950.0,118940.0,0.1782]
[1752665548628,0.03639593,118950.0,118940.0,0.05]
[1752665548931,0.03639593,118950.0,118940.0,0.1782]
[1752665549561,0.03639593,118950.0,118940.0,0.05]
[1752665549779,0.03639593,118950.0,118940.0,0.1782]
[1752665550004,0.36729544,118950.0,118940.0,0.1782]
[1752665552011,0.03639593,118950.0,118940.0,0.1782]
[1752665552224,0.36729544,118950.0,118940.0,0.1782]
[1752665556351,0.03639593,118950.0,118940.0,0.1782]
[1752665558210,0.03639593,118950.0,118940.0,0.05]
[1752665558420,0.03639593,118950.0,118940.0,0.1782]
[1752665563294,0.36729544,118950.0,118940.0,0.1782]
[1752665563511,0.03639593,118950.0,118940.0,0.1782]
[1752665563728,0.36729544,118950.0,118940.0,0.1782]
[1752665564177,0.36729544,118950.0,118940.0,0.05]
[1752665564398,0.78370523,118950.0,118940.0,0.1782]
[1752665564832,0.45280572,118950.0,118940.0,0.1782]
[1752665565054,0.56327644,118950.0,118940.0,0.1282]
[1752665566334,0.53217644,118950.0,118930.0,0.1282]
[1752665566547,0.55908051,118940.0,118930.0,0.1282]
[1752665566764,0.56415051,118940.0,118930.0,0.1282]
[1752665567753,0.12378028,118940.0,118930.0,0.1302]
[1752665567963,0.56515051,118940.0,118930.0,0.1302]
[1752665568166,0.56515051,118940.0,118930.0,0.002]
[1752665568380,0.56515051,118940.0,118930.0,0.1302]
[1752665571850,0.57371161,118940.0,118930.0,0.1302]
[1752665572529,0.13234138,118940.0,118930.0,0.1302]
[1752665572716,0.57371161,118940.0,118930.0,0.1302]
[1752665572955,0.57371161,118940.0,118930.0,0.002]
[1752665573407,0.70191161,118940.0,118930.0,0.002]
[1752665574039,0.26054138,118940.0,118930.0,0.002]
[1752665574248,0.70191161,118940.0,118930.0,0.002]
[1752665574463,0.70091161,118940.0,118920.0,0.003]
[1752665574689,0.47572023,118930.0,118920.0,0.003]
[1752665574908,0.56332051,118930.0,118920.0,0.003]
[1752665577135,0.56532051,118930.0,118920.0,0.004]
[1752665577339,0.12395028,118930.0,118920.0,0.004]
[1752665577512,0.56532051,118930.0,118920.0,0.004]
[1752665583700,0.12395028,118930.0,118920.0,0.004]
[1752665583910,0.56532051,118930.0,118920.0,0.004]
[1752665585023,0.45506703,118930.0,118920.0,0.004]
[1752665589006,0.81145237,118930.0,118920.0,0.004]
[1752665589227,0.14921887,118930.0,118920.0,0.004]
[1752665589437,0.81145237,118930.0,118920.0,0.004]
[1752665589842,0.48033562,118930.0,118920.0,0.004]
[1752665590044,0.81145237,118930.0,118920.0,0.004]
[1752665593302,0.86145237,118930.0,118920.0,0.004]
[1752665593730,0.88670437,118930.0,118920.0,0.004]
[1752665594792,0.89456066,118930.0,118920.0,0.004]
[1752665595988,0.88670437,118930.0,118920.0,0.004]
[1752665596195,0.89456049,118930.0,118920.0,0.004]
[1752665596401,0.23232699,118930.0,118920.0,0.004]
[1752665596601,0.88670437,118930.0,118920.0,0.004]
[1752665596820,0.89456049,118930.0,118920.0,0.004]
[1752665597469,1.02280049,118930.0,118920.0,0.004]
[1752665599067,0.80213843,118930.0,118920.0,0.004]
[1752665599596,0.883182,118930.0,118920.0,0.004]
[1752665604701,0.87532492,118930.0,118920.0,0.004]
[1752665604916,0.88319116,118930.0,118920.0,0.004]
[1752665605413,1.32476164,118930.0,118920.0,0.004]
[1752665605597,0.88319116,118930.0,118920.0,0.004]
[1752665605841,1.32476164,118930.0,118920.0,0.004]
[1752665606270,1.37476163,118930.0,118920.0,0.004]
[1752665606712,0.93319115,118930.0,118920.0,0.004]
[1752665606919,1.37276163,118930.0,118920.0,0.003]
[1752665607126,0.93119115,118930.0,118920.0,0.004]
[1752665607334,0.93519115,118930.0,118920.0,0.004]
[1752665607522,0.88519116,118930.0,118920.0,0.003]
[1752665607736,0.90492024,118930.0,118920.0,0.004]
[1752665607946,0.93919115,118930.0,118920.0,0.004]
[1752665609023,0.88919116,118930.0,118920.0,0.004]
[1752665609232,0.93919115,118930.0,118920.0,0.004]
[1752665609437,0.88919116,118930.0,118920.0,0.004]
[1752665609641,0.93919115,118930.0,118920.0,0.004]
[1752665609819,0.88919116,118930.0,118920.0,0.004]
[1752665610017,0.93919115,118930.0,118920.0,0.004]
[1752665610468,0.88919116,118930.0,118920.0,0.004]
[1752665610676,0.93918971,118930.0,118920.0,0.004]
[1752665613327,0.88918972,118930.0,118920.0,0.004]
[1752665613562,0.93919069,118930.0,118920.0,0.004]
[1752665615306,0.81095069,118930.0,118920.0,0.004]
[1752665615460,0.93923069,118930.0,118920.0,0.004]
[1752665616119,0.8892307,118930.0,118920.0,0.004]
[1752665616269,0.93923069,118930.0,118920.0,0.004]
[1752665616479,0.44766201,118930.0,118920.0,0.004]
[1752665616680,0.15713845,118930.0,118920.0,0.00599]
[1752665616927,0.11877887,118930.0,118920.0,0.02099]
[1752665617100,0.11877887,118930.0,118920.0,0.03659]
[1752665618108,0.56034935,118930.0,118920.0,0.02099]
[1752665619432,0.56547935,118930.0,118920.0,0.02099]
[1752665619638,0.56547935,118930.0,118920.0,0.00599]
[1752665619846,0.56547935,118930.0,118920.0,0.004]
[1752665619847,0.58137935,118930.0,118920.0,0.004]
[1752665620600,0.44157048,118920.0,118900.0,0.0008528]
[1752665620814,0.08551028,118920.0,118910.0,0.0014]
[1752665623200,0.08651028,118920.0,118910.0,0.0014]
[1752665623419,0.07903028,118920.0,118910.0,0.0165]
[1752665624042,0.07903028,118920.0,118910.0,0.0295]
[1752665624464,0.07803028,118920.0,118910.0,0.0295]
[1752665625231,0.05351559,118930.0,118910.0,0.47194048]
[1752665625432,0.13902587,118930.0,118920.0,0.0157]
[1752665625654,0.13902587,118930.0,118920.0,0.0171]
[1752665625866,0.11377887,118930.0,118920.0,0.0171]
[1752665626267,0.55534935,118930.0,118920.0,0.0171]
[1752665626875,0.55734935,118930.0,118920.0,0.0181]
[1752665627309,0.55734935,118930.0,118920.0,0.0024]
[1752665627683,0.56031935,118930.0,118920.0,0.0024]
[1752665628951,0.11874887,118930.0,118920.0,0.0024]
[1752665629157,0.57777935,118930.0,118920.0,0.001]
[1752665629363,0.59377935,118930.0,118920.0,0.001]
[1752665630589,0.57777935,118930.0,118920.0,0.001]
[1752665632231,0.11874887,118930.0,118920.0,0.0024]
[1752665632446,0.56031935,118930.0,118920.0,0.0024]
[1752665632664,0.55734935,118930.0,118920.0,0.0024]
[1752665634675,0.56056935,118930.0,118920.0,0.0024]
[1752665634853,0.57676935,118930.0,118920.0,0.0024]
[1752665635296,0.57875935,118930.0,118920.0,0.001]
[1752665636456,0.57875935,118930.0,118920.0,0.001]
[1752665637011,0.13718887,118930.0,118920.0,0.001]
[1752665637238,0.57875935,118930.0,118920.0,0.001]
[1752665640322,0.59525935,118930.0,118920.0,0.001]
[1752665640812,0.15368887,118930.0,118920.0,0.001]
[1752665641061,0.59525935,118930.0,118920.0,0.001]
[1752665641366,0.57875935,118930.0,118920.0,0.001]
[1752665641630,0.13718887,118930.0,118920.0,0.0024]
[1752665641894,0.57875935,118930.0,118920.0,0.0024]
[1752665642538,0.56255935,118930.0,118920.0,0.0024]
[1752665642727,0.57775935,118930.0,118920.0,0.0024]
[1752665643684,0.13618887,118930.0,118920.0,0.0024]
[1752665643876,0.57775935,118930.0,118920.0,0.001]
[1752665646431,0.55249076,118930.0,118920.0,0.001]
[1752665649043,0.11092028,118930.0,118920.0,0.001]
[1752665649256,0.55249076,118930.0,118920.0,0.001]
[1752665650941,0.11092028,118930.0,118920.0,0.001]
[1752665651184,0.55249076,118930.0,118920.0,0.001]
[1752665651836,0.56769076,118930.0,118920.0,0.001]
[1752665652466,0.12612028,118930.0,118920.0,0.001]
[1752665652620,0.56769076,118930.0,118920.0,0.001]
[1752665652998,0.11092028,118930.0,118920.0,0.001]
[1752665653196,0.55249076,118930.0,118920.0,0.001]
[1752665656323,0.11092028,118930.0,118920.0,0.001]
[1752665656593,0.55249076,118930.0,118920.0,0.001]
[1752665656998,0.44200407,118930.0,118920.0,0.001]
[1752665658247,0.45770407,118930.0,118920.0,0.001]
[1752665658914,0.12662028,118930.0,118920.0,0.001]
[1752665659117,0.45770407,118930.0,118920.0,0.001]
[1752665659972,0.78878786,118930.0,118920.0,0.001]
[1752665660626,0.91702786,118930.0,118920.0,0.001]
[1752665661654,0.25486028,118930.0,118920.0,0.001]
[1752665661921,0.91702786,118930.0,118920.0,0.001]
[1752665663033,0.69646014,118930.0,118920.0,0.001]
[1752665664589,1.13806,118930.0,118920.0,0.001]
[1752665665029,0.69646014,118930.0,118920.0,0.001]
[1752665669317,1.13806,118930.0,118920.0,0.001]
[1752665671612,1.27381962,118930.0,118920.0,0.001]
[1752665671851,1.29907162,118930.0,118920.0,0.001]
[1752665675341,1.34907161,118930.0,118920.0,0.001]
[1752665675770,1.35693468,118930.0,118920.0,0.001]
[1752665676210,1.30693469,118930.0,118920.0,0.001]
[1752665676426,1.35693284,118930.0,118920.0,0.001]
[1752665676644,1.34907161,118930.0,118920.0,0.001]
[1752665680172,1.29907162,118930.0,118920.0,0.001]
[1752665680376,1.34907161,118930.0,118920.0,0.001]
[1752665680755,1.29907162,118930.0,118920.0,0.001]
[1752665680988,1.34907161,118930.0,118920.0,0.001]
[1752665681216,1.84027161,118930.0,118920.0,0.001]
[1752665686168,1.79027162,118930.0,118920.0,0.001]
[1752665686398,1.84027161,118930.0,118920.0,0.001]
[1752665687234,1.79027162,118930.0,118920.0,0.001]
[1752665687432,1.84027161,118930.0,118920.0,0.001]
[1752665688867,0.95707189,118930.0,118920.0,0.001]
[1752665689088,1.84027161,118930.0,118920.0,0.001]
[1752665689309,1.83871161,118930.0,118920.0,0.001]
[1752665689987,1.78871162,118930.0,118920.0,0.001]
[1752665690224,1.83871161,118930.0,118920.0,0.001]
[1752665690674,1.78871162,118930.0,118920.0,0.001]
[1752665690898,1.83871161,118930.0,118920.0,0.001]
[1752665691545,1.78871162,118930.0,118920.0,0.001]
[1752665691768,1.83871161,118930.0,118920.0,0.001]
[1752665693387,1.78871162,118930.0,118920.0,0.001]
[1752665693640,1.83871161,118930.0,118920.0,0.001]
[1752665693884,1.78871162,118930.0,118920.0,0.001]
[1752665694343,1.83871161,118930.0,118920.0,0.001]
[1752665694557,1.78871162,118930.0,118920.0,0.001]
[1752665694784,1.83871161,118930.0,118920.0,0.001]
[1752665696251,1.71047161,118930.0,118920.0,0.001]
[1752665696506,1.26887175,118930.0,118920.0,0.001]
[1752665696722,1.06741214,118930.0,118920.0,0.0024]
[1752665696941,1.17528214,118930.0,118920.0,0.0178]
[1752665697367,1.04700214,118930.0,118920.0,0.0178]
[1752665697576,1.17528214,118930.0,118920.0,0.0178]
[1752665698740,1.04700214,118930.0,118920.0,0.0178]
[1752665698952,0.68408214,118930.0,118920.0,0.0178]
[1752665700541,0.68731214,118930.0,118920.0,0.0024]
[1752665702226,0.70321214,118930.0,118920.0,0.0024]
[1752665702457,0.70531214,118930.0,118920.0,0.0024]
[1752665704782,0.70531214,118930.0,118920.0,0.001]
[1752665705535,1.162912,118930.0,118920.0,0.001]
[1752665706351,1.212912,118930.0,118920.0,0.001]
[1752665709955,0.77131214,118930.0,118920.0,0.001]
[1752665710554,0.75531214,118930.0,118920.0,0.0024]
[1752665710780,0.55580214,118930.0,118920.0,0.0305]
[1752665710988,0.68404214,118930.0,118920.0,0.0305]
[1752665712217,0.68404214,118930.0,118920.0,0.0175]
[1752665713657,0.68727214,118930.0,118920.0,0.0024]
[1752665713877,0.70557214,118930.0,118920.0,0.0024]
[1752665716606,1.147172,118930.0,118920.0,0.0024]
[1752665717024,1.1557321,118930.0,118920.0,0.0024]
[1752665717775,0.71413224,118930.0,118920.0,0.0024]
[1752665721932,0.69260224,118930.0,118920.0,0.0024]
[1752665722141,0.69260224,118930.0,118920.0,0.0177]
[1752665722334,0.56436224,118930.0,118920.0,0.0177]
[1752665722545,0.25100238,118930.0,118920.0,0.03157]
[1752665722749,0.66735024,118930.0,118920.0,0.0307]
[1752665723406,0.66735024,118930.0,118920.0,0.0177]
[1752665724163,0.53911024,118930.0,118920.0,0.0177]
[1752665728218,0.66735024,118930.0,118920.0,0.0177]
[1752665729843,0.54228024,118930.0,118920.0,0.0024]
[1752665730055,0.54443024,118930.0,118920.0,0.0024]
[1752665730241,0.56093024,118930.0,118920.0,0.0024]
[1752665735071,0.56093024,118930.0,118920.0,0.001]
[1752665735531,0.70497024,118930.0,118920.0,0.001]
[1752665737444,0.73021724,118930.0,118920.0,0.001]
[1752665739315,0.28861738,118930.0,118920.0,0.001]
[1752665739523,0.71441724,118930.0,118920.0,0.001]
[1752665741616,0.71441724,118930.0,118920.0,0.0024]
[1752665741904,0.68917024,118930.0,118920.0,0.0024]
[1752665744322,0.71441824,118930.0,118920.0,0.0024]
[1752665744946,0.68917024,118930.0,118920.0,0.001]
[1752665750918,0.71441824,118930.0,118920.0,0.001]
[1752665751125,1.1718181,118930.0,118920.0,0.001]
[1752665751331,1.1465701,118930.0,118920.0,0.001]
[1752665751539,1.1718171,118930.0,118920.0,0.001]
[1752665752846,0.73021724,118930.0,118920.0,0.001]
[1752665753543,0.70497024,118930.0,118920.0,0.001]
[1752665753758,0.73021824,118930.0,118920.0,0.001]
[1752665753956,0.71441824,118930.0,118920.0,0.001]
[1752665755192,0.93511376,118930.0,118920.0,0.001]
[1752665756072,0.93511376,118930.0,118920.0,0.0024]
[1752665757095,0.71434349,118930.0,118920.0,0.0024]
[1752665757302,0.56428349,118930.0,118920.0,0.0024]
[1752665757510,0.56428349,118930.0,118920.0,0.0184]
[1752665757851,0.56428349,118930.0,118920.0,0.0024]
[1752665759386,0.56734349,118930.0,118920.0,0.0024]
[1752665760069,0.58304349,118930.0,118920.0,0.0024]
[1752665760308,0.58503349,118930.0,118920.0,0.0024]
[1752665760516,0.58503349,118930.0,118920.0,0.001]
[1752665763932,0.60063349,118930.0,118920.0,0.001]
[1752665764143,1.0421586,118930.0,118920.0,0.001]
[1752665764355,0.60063349,118930.0,118920.0,0.001]
[1752665765181,1.0421586,118930.0,118920.0,0.001]
[1752665765831,0.58503349,118930.0,118920.0,0.001]
[1752665766044,0.71323349,118930.0,118920.0,0.001]
[1752665768114,0.71323349,118930.0,118920.0,0.0024]
[1752665768728,0.71323349,118930.0,118920.0,0.001]
[1752665768949,0.71318537,118930.0,118920.0,0.001]
[1752665770019,0.58498537,118930.0,118920.0,0.001]
[1752665770642,1.02651048,118930.0,118920.0,0.001]
[1752665770978,1.04181048,118930.0,118920.0,0.001]
[1752665773483,0.60028537,118930.0,118920.0,0.001]
[1752665775006,0.15876026,118930.0,118920.0,0.001]
[1752665775288,0.60028537,118930.0,118920.0,0.001]
[1752665776965,0.15876026,118930.0,118920.0,0.001]
[1752665777103,0.82108632,118930.0,118920.0,0.001]
[1752665777310,0.81252622,118930.0,118920.0,0.001]
[1752665777729,0.79722622,118930.0,118920.0,0.001]
[1752665778537,0.81332622,118930.0,118920.0,0.001]
[1752665780673,0.94148622,118930.0,118920.0,0.001]
[1752665781603,0.95005791,118930.0,118920.0,0.001]
[1752665785224,0.9579371,118930.0,118920.0,0.001]
[1752665785426,0.95005791,118930.0,118920.0,0.001]
[1752665791667,0.82189791,118930.0,118920.0,0.001]
[1752665791850,0.95005791,118930.0,118920.0,0.001]
[1752665797199,0.82189791,118930.0,118920.0,0.001]
[1752665797609,0.82977688,118930.0,118920.0,0.001]
[1752665798851,0.82977719,118930.0,118920.0,0.001]
[1752665799371,0.95789719,118930.0,118920.0,0.001]
[1752665804158,0.95789748,118930.0,118920.0,0.001]
[1752665807052,0.9578975,118930.0,118920.0,0.001]
[1752665807265,1.28906053,118930.0,118920.0,0.001]
[1752665807658,0.9578975,118930.0,118920.0,0.001]
[1752665807877,1.28906053,118930.0,118920.0,0.001]
[1752665812650,1.28118094,118930.0,118920.0,0.001]
[1752665812850,1.28905708,118930.0,118920.0,0.001]
[1752665814969,1.4248167,118930.0,118920.0,0.001]
[1752665815677,1.42481637,118930.0,118920.0,0.00085285]
[1752665818082,0.67673069,118930.0,118920.0,0.00085285]
[1752665818278,1.33905675,118930.0,118920.0,0.00085285]
[1752665819871,0.34556766,118930.0,118920.0,0.00085285]
[1752665820016,1.33118094,118930.0,118920.0,0.00085285]
[1752665820210,1.33905675,118930.0,118920.0,0.00085285]
[1752665820442,1.42481637,118930.0,118920.0,0.00085285]
[1752665821269,1.42481333,118930.0,118920.0,0.00085285]
[1752665829414,0.00779,118920.0,118890.0,0.09754301]
[1752665829617,0.66232606,118900.0,118890.0,0.09841301]
[1752665829826,0.74783634,118900.0,118890.0,0.09981301]
[1752665831008,0.74783634,118900.0,118890.0,0.09986354]